fUST/lending_fUST_20251125
["ID","MTS","AMOUNT","RATE_DAILY","PERIOD"]
[394848449,1764016547884,-1326.85799748,8.171e-05,2]
[394848450,1764016547913,-300.0,8.252e-05,2]
[394848451,1764016547942,-892.0,8.252e-05,2]
[394848452,1764016547973,-373.06533201,8.253e-05,2]
[394848453,1764016548010,-500.0,8.253e-05,2]
[394848454,1764016548044,-500.0,8.253e-05,2]
[394848455,1764016548078,-500.0,8.253e-05,2]
[394848456,1764016548111,-500.0,8.253e-05,2]
[394848457,1764016548349,-500.0,8.253e-05,2]
[394848458,1764016548383,-500.0,8.253e-05,2]
[394848459,1764016548417,-500.0,8.253e-05,2]
[394848460,1764016548451,-500.0,8.253e-05,2]
[394848461,1764016548486,-500.0,8.253e-05,2]
[394848462,1764016548524,-500.0,8.253e-05,2]
[394848463,1764016548559,-500.0,8.253e-05,2]
[394848464,1764016548591,-500.0,8.253e-05,2]
[394848465,1764016548624,-500.0,8.253e-05,2]
[394848466,1764016548656,-500.0,8.253e-05,2]
[394848467,1764016548763,-500.0,8.253e-05,2]
[394848468,1764016548796,-500.0,8.253e-05,2]
[394848469,1764016548829,-500.0,8.253e-05,2]
[394848470,1764016548864,-500.0,8.253e-05,2]
[394848471,1764016548898,-500.0,8.253e-05,2]
[394848472,1764016548934,-500.0,8.253e-05,2]
[394848473,1764016548970,-500.0,8.253e-05,2]
[394848474,1764016549003,-500.0,8.253e-05,2]
[394848475,1764016549040,-500.0,8.253e-05,2]
[394848476,1764016549090,-500.0,8.253e-05,2]
[394848477,1764016549166,-500.0,8.253e-05,2]
[394848478,1764016549218,-500.0,8.253e-05,2]
[394848479,1764016549271,-500.0,8.253e-05,2]
[394848480,1764016549322,-500.0,8.253e-05,2]
[394848481,1764016549371,-500.0,8.253e-05,2]
[394848482,1764016549417,-500.0,8.253e-05,2]
[394848483,1764016549459,-500.0,8.253e-05,2]
[394848484,1764016549501,-500.0,8.253e-05,2]
[394848485,1764016549547,-500.0,8.253e-05,2]
[394848486,1764016549591,-500.0,8.253e-05,2]
[394848487,1764016549776,-500.0,8.253e-05,2]
[394848488,1764016549819,-500.0,8.253e-05,2]
[394848489,1764016549861,-500.0,8.253e-05,2]
[394848490,1764016549903,-500.0,8.253e-05,2]
[394848491,1764016549948,-500.0,8.253e-05,2]
[394848492,1764016549991,-500.0,8.253e-05,2]
[394848493,1764016550034,-343.36334442,8.253e-05,2]
[394848494,1764016550078,-500.0,8.253e-05,2]
[394848495,1764016550121,-500.0,8.253e-05,2]
[394848496,1764016550164,-500.0,8.253e-05,2]
[394848497,1764016550393,-500.0,8.253e-05,2]
[394848498,1764016550435,-500.0,8.253e-05,2]
[394848499,1764016550472,-500.0,8.253e-05,2]
[394848500,1764016550508,-500.0,8.253e-05,2]
[394848501,1764016550543,-500.0,8.253e-05,2]
[394848502,1764016550817,-500.0,8.253e-05,2]
[394848503,1764016550872,-500.0,8.253e-05,2]
[394848504,1764016550906,-500.0,8.253e-05,2]
[394848505,1764016550940,-500.0,8.253e-05,2]
[394848506,1764016550974,-250.0,8.253e-05,2]
[394848507,1764016551007,-0.01,8.253e-05,2]
[394848508,1764016551257,-499.99,8.253e-05,2]
[394848509,1764016551289,-500.0,8.253e-05,2]
[394848510,1764016551327,-500.0,8.253e-05,2]
[394848511,1764016551362,-500.0,8.253e-05,2]
[394848512,1764016551394,-500.0,8.253e-05,2]
[394848513,1764016551430,-500.0,8.253e-05,2]
[394848514,1764016551463,-500.0,8.253e-05,2]
[394848515,1764016551495,-500.0,8.253e-05,2]
[394848516,1764016551527,-500.0,8.253e-05,2]
[394848517,1764016551558,-500.0,8.253e-05,2]
[394848518,1764016551952,-500.0,8.253e-05,2]
[394848519,1764016554336,-2059.56341209,8.254e-05,2]
[394848520,1764016554356,-10000.01,8.254e-05,2]
[394848521,1764016554549,-10000.01,8.254e-05,2]
[394848522,1764016554564,-3001.26031961,8.254e-05,2]
[394848523,1764016554573,-6998.74968039,8.337e-05,2]
[394848524,1764016559809,-10000.01,8.337e-05,2]
[394848525,1764016559916,-1937.92594869,8.337e-05,2]
[394848526,1764016559940,-6124.15810262,8.337e-05,2]
[394848527,1764016560050,-164.66438084,8.42e-05,2]
[394848528,1764016560079,-346.94946685,8.502e-05,2]
[394848529,1764016560110,-300.0,8.503e-05,2]
[394848530,1764016560141,-300.0,8.503e-05,2]
[394848531,1764016560171,-300.0,8.503e-05,2]
[394848532,1764016560202,-300.0,8.503e-05,2]
[394848533,1764016560233,-300.0,8.503e-05,2]
[394848534,1764016560269,-300.0,8.503e-05,2]
[394848535,1764016560300,-300.0,8.503e-05,2]
[394848536,1764016560333,-300.0,8.503e-05,2]
[394848537,1764016560363,-300.0,8.503e-05,2]
[394848538,1764016560392,-300.0,8.503e-05,2]
[394848539,1764016560422,-300.0,8.503e-05,2]
[394848540,1764016560451,-300.0,8.503e-05,2]
[394848541,1764016560479,-300.0,8.503e-05,2]
[394848542,1764016560509,-300.0,8.503e-05,2]
[394848543,1764016560539,-276.78230462,8.503e-05,2]
[394848544,1764016560634,-23.21769538,8.503e-05,2]
[394848545,1764016560873,-23.21769538,8.503e-05,2]
[394848546,1764016560886,-9953.57460924,8.503e-05,2]
[394848547,1764016560904,-10000.01,8.503e-05,2]
[394848548,1764016560917,-10000.01,8.503e-05,2]
[394848549,1764016711575,179.005336,0.000196,30]
[394849496,1764017019184,-161.37109322,8.374e-05,2]
[394849497,1764017019215,-161.37109322,8.544e-05,2]
[394849498,1764017019248,-600.0,8.672e-05,2]
[394849499,1764017019280,-300.0,9.092e-05,2]
[394849500,1764017023714,7554.52562712,9.002e-05,2]
[394849501,1764017023739,10000.01,9.002e-05,2]
[394849502,1764017023762,10000.01,9.002e-05,2]
[394849503,1764017023786,10000.01,9.002e-05,2]
[394849504,1764017023809,10000.01,9.002e-05,2]
[394849505,1764017023832,10000.01,9.002e-05,2]
[394849506,1764017025064,-993.15859071,9.002e-05,2]
[394849507,1764017105095,3422.2789955,0.0001111,3]
[394849508,1764017200135,-157.98062847,9.001e-05,2]
[394849509,1764017200158,-2.58122162,9.047e-05,2]
[394849543,1764017431759,-158.09204692,8.969e-05,2]
[394849545,1764017431768,-158.09204692,9.059e-05,2]
[394849547,1764017431777,-300.0,9.072e-05,2]
[394849549,1764017431787,-500.0,9.073e-05,2]
[394849551,1764017431796,-500.0,9.073e-05,2]
[394849553,1764017431805,-500.0,9.073e-05,2]
[394849555,1764017431814,-500.0,9.073e-05,2]
[394849557,1764017431823,-258.86741491,9.073e-05,2]
[394849730,1764017437734,-158.09204692,8.879e-05,2]
[394849731,1764017437743,-132.05479886,9.073e-05,2]
[394849732,1764017437753,-228.06689575,9.087e-05,2]
[394849733,1764017437792,-21.93310425,9.087e-05,2]
[394849734,1764017437801,-534.38915002,9.087e-05,2]
[394849735,1764017437810,-250.0,9.087e-05,2]
[394849736,1764017437819,-181.08010149,9.087e-05,2]
[394849737,1764017437828,-74.45830756,9.09e-05,2]
[394849738,1764017437850,-553.1658229,9.09e-05,2]
[394849750,1764017440088,-49175.08914424,9.09e-05,2]
[394849751,1764017440104,-197.2867253,9.09e-05,2]
[394849752,1764017440114,-500.0,9.091e-05,2]
[394849754,1764017440124,-500.0,9.091e-05,2]
[394849755,1764017440133,-500.0,9.091e-05,2]
[394849756,1764017440143,-500.0,9.091e-05,2]
[394849757,1764017440153,-500.0,9.091e-05,2]
[394849758,1764017440163,-500.0,9.091e-05,2]
[394849759,1764017440172,-500.0,9.091e-05,2]
[394849760,1764017440181,-500.0,9.091e-05,2]
[394849761,1764017440191,-242.86462679,9.092e-05,2]
[394849762,1764017440200,-11167.73622844,9.093e-05,2]
[394849763,1764017440212,-3704.51237733,9.093e-05,2]
[394849764,1764017440223,-4124.83434121,9.093e-05,2]
[394849794,1764017445474,-1983.94842012,9e-05,2]
[394849795,1764017445484,-9181.23313693,9.093e-05,2]
[394849796,1764017445496,-24830.98802334,9.093e-05,2]
[394849797,1764017445510,-85117.74919397,9.093e-05,2]
[394849799,1764017446190,-7116.10914602,9.093e-05,2]
[394849802,1764017490441,-508.35644116,8.969e-05,2]
[394849803,1764017490468,-508.35644116,9.059e-05,2]
[394849804,1764017490494,-386.62062406,9.073e-05,2]
[394849805,1764017490524,-500.0,9.073e-05,2]
[394849806,1764017490551,-500.0,9.073e-05,2]
[394849807,1764017490579,-500.0,9.089e-05,2]
[394849808,1764017490610,-310.940023,9.089e-05,2]
[394849809,1764017490638,-500.0,9.089e-05,2]
[394849810,1764017490666,-500.0,9.089e-05,2]
[394849811,1764017490695,-500.0,9.089e-05,2]
[394849812,1764017490723,-71.46294124,9.089e-05,2]
[394849813,1764017490873,-428.53705876,9.089e-05,2]
[394849814,1764017490904,-495.66117698,9.089e-05,2]
[394849815,1764017490933,-500.0,9.089e-05,2]
[394849816,1764017490962,-500.0,9.089e-05,2]
[394849817,1764017490992,-500.0,9.089e-05,2]
[394849818,1764017491021,-500.0,9.089e-05,2]
[394849819,1764017491050,-500.0,9.089e-05,2]
[394849820,1764017491078,-500.0,9.089e-05,2]
[394849821,1764017491107,-500.0,9.089e-05,2]
[394849822,1764017491134,-500.0,9.089e-05,2]
[394849823,1764017491383,-500.0,9.089e-05,2]
[394849824,1764017491412,-500.0,9.089e-05,2]
[394849825,1764017491440,-500.0,9.089e-05,2]
[394849826,1764017491468,-500.0,9.089e-05,2]
[394849827,1764017491495,-500.0,9.089e-05,2]
[394849828,1764017491525,-500.0,9.089e-05,2]
[394849829,1764017491552,-500.0,9.089e-05,2]
[394849830,1764017491579,-500.0,9.089e-05,2]
[394849831,1764017491608,-500.0,9.089e-05,2]
[394849832,1764017491634,-500.0,9.089e-05,2]
[394849833,1764017491878,-577.10694243,9.089e-05,2]
[394849834,1764017491905,-500.0,9.089e-05,2]
[394849835,1764017491932,-300.0,9.092e-05,2]
[394849836,1764017491969,500.0,9.073e-05,2]
[394849837,1764017492638,500.0,9.073e-05,2]
[394849838,1764017503434,226.52644592,9.002e-05,2]
[394849839,1764017503827,162.611,8.911e-05,2]
[394851983,1764017959128,-3728.90904978,8.823e-05,2]
[394851984,1764017959350,-2542.19190044,8.823e-05,2]
[394851985,1764017959380,-158.29070355,8.992e-05,2]
[394851986,1764017959409,-1200.0,9.071e-05,2]
[394851987,1764017959442,-300.0,9.071e-05,2]
[394851988,1764017959473,-300.0,9.072e-05,2]
[394851989,1764017959502,-300.0,9.072e-05,2]
[394851990,1764017959608,-500.0,9.073e-05,2]
[394851991,1764017959638,-500.0,9.073e-05,2]
[394851992,1764017959667,-500.0,9.073e-05,2]
[394851993,1764017959701,-500.0,9.073e-05,2]
[394851994,1764017959730,-500.0,9.073e-05,2]
[394851995,1764017959759,-500.0,9.073e-05,2]
[394851996,1764017959787,-500.0,9.073e-05,2]
[394851997,1764017959815,-500.0,9.073e-05,2]
[394851998,1764017959843,-500.9534743,9.073e-05,2]
[394851999,1764017959871,-188.21714756,9.073e-05,2]
[394852000,1764017959899,-121.66875628,9.073e-05,2]
[394852001,1764017959994,-378.33124372,9.073e-05,2]
[394852002,1764017960023,-500.0,9.073e-05,2]
[394852003,1764017960054,-500.0,9.073e-05,2]
[394852004,1764017960083,-500.0,9.073e-05,2]
[394852005,1764017960113,-501.46867833,9.073e-05,2]
[394852006,1764017960143,-502.19572659,9.073e-05,2]
[394852007,1764017960174,-2000.0,9.087e-05,2]
[394852008,1764017961841,-3291.04896184,9.073e-05,2]
[394852009,1764017962205,-10000.01,9.073e-05,2]
[394852010,1764017964884,-10000.01,9.073e-05,2]
[394852011,1764017965064,-10000.01,9.073e-05,2]
[394852012,1764017965417,-10000.01,9.073e-05,2]
[394852371,1764018412123,-152.1559917,8.705e-05,2]
[394852375,1764018421675,-3.58496881,8.705e-05,2]
[394852376,1764018421703,-158.12488948,8.749e-05,2]
[394852377,1764018421735,-162.611,8.793e-05,2]
[394852378,1764018421763,-300.0,8.952e-05,2]
[394852379,1764018421790,-500.0,8.953e-05,2]
[394852380,1764018421825,-500.0,8.953e-05,2]
[394852381,1764018421853,-500.0,8.953e-05,2]
[394852382,1764018421881,-500.0,8.953e-05,2]
[394852383,1764018421909,-500.0,8.953e-05,2]
[394852384,1764018421939,-500.0,8.953e-05,2]
[394852385,1764018422113,-2751.36828342,8.967e-05,2]
[394852386,1764018422264,-10000.01,8.967e-05,2]
[394852387,1764018422383,-10000.01,8.967e-05,2]
[394852389,1764018424618,-300.0,8.952e-05,2]
[394852390,1764018424682,-9400.01,8.967e-05,2]
[394852569,1764018638031,-223.0,8.966e-05,2]
[394852570,1764018638041,-2445.98,8.967e-05,2]
[394852571,1764018638088,-971.06999034,8.967e-05,2]
[394852592,1764018643663,-721.3809596,8.967e-05,2]
[394852651,1764018644839,-2661.61000003,8.967e-05,2]
[394852652,1764018644893,-5000.0,8.967e-05,2]
[394852663,1764018646966,-17135.35102009,8.967e-05,2]
[394852848,1764018886233,-162.611,8.793e-05,2]
[394852849,1764018886261,-500.0,8.953e-05,2]
[394852850,1764018886290,-500.0,8.953e-05,2]
[394852851,1764018886318,-500.0,8.953e-05,2]
[394852852,1764018886347,-500.0,8.953e-05,2]
[394852853,1764018886375,-671.0,8.964e-05,2]
[394852854,1764018886405,-500.0,8.965e-05,2]
[394852855,1764018886436,-500.0,8.965e-05,2]
[394852856,1764018886464,-266.47655193,8.965e-05,2]
[394852857,1764018886492,-341.90077138,8.965e-05,2]
[394852858,1764018886522,-500.0,8.965e-05,2]
[394852859,1764018886708,-116.03335338,8.965e-05,2]
[394852860,1764018888863,-375.31383087,8.965e-05,2]
[394852861,1764018888899,-9249.38233826,8.966e-05,2]
[394852862,1764018890112,-1402.72730818,8.966e-05,2]
[394852863,1764018890136,-7194.55538364,8.966e-05,2]
[394852864,1764018892961,-500.0,8.966e-05,2]
[394852865,1764018892994,-500.0,8.966e-05,2]
[394852866,1764018893027,-500.0,8.966e-05,2]
[394852867,1764018893058,-500.0,8.966e-05,2]
[394852868,1764018893090,-500.0,8.966e-05,2]
[394852869,1764018893123,-500.0,8.966e-05,2]
[394852870,1764018893155,-500.0,8.966e-05,2]
[394852871,1764018893187,-500.0,8.966e-05,2]
[394852872,1764018893218,-500.0,8.966e-05,2]
[394852873,1764018893250,-500.0,8.966e-05,2]
[394852874,1764018893485,-0.01,8.966e-05,2]
[394852875,1764018936255,151.0,0.00011603,7]
[394852909,1764019349697,-162.611,8.69e-05,2]
[394852917,1764019352792,157.49402091,8.863e-05,2]
[394852918,1764019352823,454.88009234,8.863e-05,2]
[394852919,1764019354151,897.58083072,8.863e-05,2]
[394852920,1764019354182,165.70524269,8.863e-05,2]
[394852921,1764019354258,897.58083072,8.863e-05,2]
[394852922,1764019354315,897.58083072,8.863e-05,2]
[394852923,1764019354362,897.58083072,8.863e-05,2]
[394852924,1764019354418,897.58083072,8.863e-05,2]
[394852925,1764019354471,897.58083072,8.863e-05,2]
[394852926,1764019354518,897.58083072,8.863e-05,2]
[394852927,1764019354743,897.58083072,8.863e-05,2]
[394852928,1764019354791,897.58083072,8.863e-05,2]
[394852929,1764019355093,818.48116758,8.863e-05,2]
[394852930,1764019355761,-79.09966314,8.863e-05,2]
[394852931,1764019355793,-897.58083072,8.863e-05,2]
[394852932,1764019355823,-897.58083072,8.863e-05,2]
[394852933,1764019355854,-897.58083072,8.863e-05,2]
[394852934,1764019355885,-897.58083072,8.863e-05,2]
[394852935,1764019355917,-897.58083072,8.863e-05,2]
[394852940,1764019358638,-897.58083072,8.863e-05,2]
[394852941,1764019358670,-897.58083072,8.863e-05,2]
[394852942,1764019358701,-897.58083072,8.863e-05,2]
[394852943,1764019358732,-897.58083072,8.863e-05,2]
[394852944,1764019358762,-897.58083072,8.863e-05,2]
[394852945,1764019358793,-126.62086208,8.863e-05,2]
[394853462,1764019600105,-180.62915944,8.774e-05,2]
[394853750,1764019815383,-157.96239169,8.808e-05,2]
[394853751,1764019815412,-500.0,8.843e-05,2]
[394853752,1764019815443,-500.0,8.843e-05,2]
[394853753,1764019815473,-500.0,8.843e-05,2]
[394853754,1764019815506,-500.0,8.843e-05,2]
[394853755,1764019815535,-500.0,8.843e-05,2]
[394853756,1764019815564,-500.0,8.843e-05,2]
[394853757,1764019815593,-500.0,8.843e-05,2]
[394853758,1764019816147,258.86741491,8.843e-05,2]
[394853804,1764019832219,-318.41606463,8.86e-05,2]
[394853805,1764019832229,-500.0,8.86e-05,2]
[394853806,1764019832239,-500.0,8.86e-05,2]
[394853807,1764019832254,-500.0,8.86e-05,2]
[394853808,1764019832263,-500.0,8.86e-05,2]
[394853809,1764019832273,-500.0,8.86e-05,2]
[394853811,1764019832282,-500.0,8.86e-05,2]
[394853813,1764019832293,-500.0,8.86e-05,2]
[394853815,1764019832302,-500.0,8.86e-05,2]
[394853817,1764019832311,-500.0,8.86e-05,2]
[394853819,1764019832321,-500.0,8.86e-05,2]
[394853821,1764019832330,-500.0,8.86e-05,2]
[394853823,1764019832339,-500.0,8.86e-05,2]
[394853825,1764019832349,-500.0,8.86e-05,2]
[394853827,1764019832358,-500.0,8.86e-05,2]
[394853829,1764019832368,-500.0,8.86e-05,2]
[394853831,1764019832378,-500.0,8.86e-05,2]
[394853833,1764019832387,-500.0,8.86e-05,2]
[394853835,1764019832396,-500.0,8.86e-05,2]
[394853837,1764019832405,-500.0,8.86e-05,2]
[394853839,1764019832414,-500.0,8.86e-05,2]
[394853841,1764019832423,-607.63571873,8.86e-05,2]
[394853843,1764019832432,-500.0,8.86e-05,2]
[394853844,1764019832442,-500.0,8.86e-05,2]
[394853845,1764019832451,-500.0,8.86e-05,2]
[394853846,1764019832461,-500.0,8.86e-05,2]
[394853847,1764019832471,-500.0,8.86e-05,2]
[394853848,1764019832480,-500.0,8.86e-05,2]
[394853849,1764019832490,-500.0,8.86e-05,2]
[394853850,1764019832500,-500.0,8.86e-05,2]
[394853851,1764019832510,-500.0,8.86e-05,2]
[394853852,1764019832520,-500.0,8.86e-05,2]
[394853854,1764019832529,-1419.4769361,8.86e-05,2]
[394853855,1764019832538,-935.86757065,8.86e-05,2]
[394853856,1764019832549,-465.415,8.86e-05,2]
[394853857,1764019832560,-18.19436545,8.86e-05,2]
[394853858,1764019832570,-610.57573455,8.86e-05,2]
[394853865,1764019838223,-808.90120155,8.86e-05,2]
[394853866,1764019838233,-1419.4769361,8.86e-05,2]
[394853867,1764019838244,-1419.4769361,8.86e-05,2]
[394853868,1764019838255,-1419.4769361,8.86e-05,2]
[394853869,1764019838264,-1419.4769361,8.86e-05,2]
[394853870,1764019838273,-1419.4769361,8.86e-05,2]
[394853871,1764019838283,-1419.4769361,8.86e-05,2]
[394853872,1764019838293,-714.54338128,8.86e-05,2]
[394853873,1764019838304,-704.93355482,8.86e-05,2]
[394853874,1764019838316,-1419.4769361,8.86e-05,2]
[394853875,1764019838325,-1419.4769361,8.86e-05,2]
[394853876,1764019838335,-1419.4769361,8.86e-05,2]
[394853877,1764019838344,-1419.4769361,8.86e-05,2]
[394853878,1764019838354,-1419.4769361,8.86e-05,2]
[394853879,1764019838363,-1201.57083701,8.86e-05,2]
[394853880,1764019838374,-217.90609909,8.86e-05,2]
[394853881,1764019838384,-1419.4769361,8.86e-05,2]
[394853882,1764019838393,-1419.4769361,8.86e-05,2]
[394853883,1764019838403,-1419.4769361,8.86e-05,2]
[394853884,1764019838412,-1419.4769361,8.86e-05,2]
[394853885,1764019838421,-1419.4769361,8.86e-05,2]
[394853886,1764019838430,-1419.4769361,8.86e-05,2]
[394853887,1764019838439,-1419.4769361,8.86e-05,2]
[394853888,1764019838449,-1419.4769361,8.86e-05,2]
[394853889,1764019838459,-1419.4769361,8.86e-05,2]
[394853890,1764019838468,-1419.4769361,8.86e-05,2]
[394853891,1764019838478,-1419.4769361,8.86e-05,2]
[394853892,1764019838487,-1419.4769361,8.86e-05,2]
[394853893,1764019838497,-1419.4769361,8.86e-05,2]
[394853894,1764019838507,-1419.4769361,8.86e-05,2]
[394853895,1764019838517,-1419.4769361,8.86e-05,2]
[394853896,1764019838526,-1419.4769361,8.86e-05,2]
[394853897,1764019838536,-1419.4769361,8.86e-05,2]
[394853898,1764019838545,-1419.4769361,8.86e-05,2]
[394853899,1764019838554,-500.0,8.861e-05,2]
[394853900,1764019838563,-1936.50973199,8.862e-05,2]
[394853901,1764019838573,-194.72792766,8.862e-05,2]
[394853902,1764019838582,-151.0,8.862e-05,2]
[394853903,1764019838591,-250.0,8.862e-05,2]
[394853904,1764019838601,-153.9300788,8.862e-05,2]
[394853905,1764019838610,-2000.0,8.862e-05,2]
[394853906,1764019838619,-250.0,8.862e-05,2]
[394853907,1764019838628,-250.0,8.862e-05,2]
[394853908,1764019838637,-250.0,8.862e-05,2]
[394853909,1764019838646,-151.0,8.862e-05,2]
[394853910,1764019838655,-229.36118214,8.862e-05,2]
[394853911,1764019838664,-398680.6959858,8.867e-05,2]
[394853912,1764019838676,-261.23030865,8.867e-05,2]
[394853920,1764019840459,-7965.26925915,8.867e-05,2]
[394853931,1764019845733,-31418.17967045,8.867e-05,2]
[394853942,1764019846405,-72052.86108475,8.867e-05,2]
[394853944,1764019846523,-496.15,8.867e-05,2]
[394853946,1764019846576,-19922.97592208,8.867e-05,2]
[394854038,1764020633504,-500.0,8.763e-05,2]
[394854039,1764020633543,-500.0,8.763e-05,2]
[394854040,1764020633577,-500.0,8.763e-05,2]
[394854041,1764020633614,-500.0,8.763e-05,2]
[394854042,1764020633648,-500.0,8.763e-05,2]
[394854043,1764020633682,-500.0,8.763e-05,2]
[394854044,1764020633717,-500.0,8.763e-05,2]
[394854045,1764020633752,-500.0,8.763e-05,2]
[394854046,1764020633787,-500.0,8.763e-05,2]
[394854047,1764020633821,-500.0,8.763e-05,2]
[394854048,1764020634629,-500.0,8.763e-05,2]
[394854049,1764020634662,-500.0,8.763e-05,2]
[394854050,1764020634695,-500.0,8.763e-05,2]
[394854051,1764020634728,-500.0,8.763e-05,2]
[394854052,1764020634761,-500.0,8.763e-05,2]
[394854053,1764020634793,-500.0,8.763e-05,2]
[394854054,1764020634825,-500.0,8.763e-05,2]
[394854055,1764020634858,-500.0,8.763e-05,2]
[394854056,1764020634894,-266.3724046,8.763e-05,2]
[394854057,1764020634928,-500.0,8.763e-05,2]
[394854058,1764020637695,-500.0,8.763e-05,2]
[394854059,1764020637730,-500.0,8.763e-05,2]
[394854060,1764020637763,-500.0,8.763e-05,2]
[394854061,1764020637795,-500.0,8.763e-05,2]
[394854062,1764020637827,-500.0,8.763e-05,2]
[394854063,1764020637858,-500.0,8.763e-05,2]
[394854064,1764020637889,-500.0,8.763e-05,2]
[394854065,1764020637920,-690.73487709,8.763e-05,2]
[394854066,1764020637951,-690.73487709,8.763e-05,2]
[394854067,1764020646681,-690.73487709,8.763e-05,2]
[394854068,1764020646713,-690.73487709,8.763e-05,2]
[394854069,1764020646747,-690.73487709,8.763e-05,2]
[394854070,1764020646779,-690.73487709,8.763e-05,2]
[394854071,1764020646814,-690.73487709,8.763e-05,2]
[394854072,1764020646850,-690.73487709,8.763e-05,2]
[394854073,1764020646888,-690.73487709,8.763e-05,2]
[394854074,1764020649671,-690.73487709,8.763e-05,2]
[394854075,1764020649706,-690.73487709,8.763e-05,2]
[394854076,1764020649743,-690.73487709,8.763e-05,2]
[394854077,1764020649778,-690.73487709,8.763e-05,2]
[394854078,1764020649812,-690.73487709,8.763e-05,2]
[394854079,1764020649846,-690.73487709,8.763e-05,2]
[394854080,1764020649880,-690.73487709,8.763e-05,2]
[394854081,1764020652894,-690.73487709,8.763e-05,2]
[394854082,1764020652934,-690.73487709,8.763e-05,2]
[394854083,1764020652971,-690.73487709,8.763e-05,2]
[394854084,1764020653003,-690.73487709,8.763e-05,2]
[394854085,1764020653038,-690.73487709,8.763e-05,2]
[394854086,1764020653073,-690.73487709,8.763e-05,2]
[394854087,1764020653105,-690.73487709,8.763e-05,2]
[394854089,1764020658771,-157.98062847,8.675e-05,2]
[394854090,1764020658805,-690.73487709,8.763e-05,2]
[394854091,1764020658838,-690.73487709,8.763e-05,2]
[394854092,1764020658870,-690.73487709,8.763e-05,2]
[394854093,1764020658905,-690.73487709,8.763e-05,2]
[394854094,1764020658953,-690.73487709,8.763e-05,2]
[394854095,1764020658989,-690.73487709,8.763e-05,2]
[394854096,1764020659025,-690.73487709,8.763e-05,2]
[394854097,1764020661933,-690.73487709,8.763e-05,2]
[394854098,1764020661967,-690.73487709,8.763e-05,2]
[394854099,1764020662001,-690.73487709,8.763e-05,2]
[394854100,1764020662034,-690.73487709,8.763e-05,2]
[394854101,1764020662068,-690.73487709,8.763e-05,2]
[394854102,1764020662102,-690.73487709,8.763e-05,2]
[394854103,1764020662136,-690.73487709,8.763e-05,2]
[394854104,1764020670850,-690.73487709,8.763e-05,2]
[394854105,1764020670885,-690.73487709,8.763e-05,2]
[394854106,1764020670920,-690.73487709,8.763e-05,2]
[394854107,1764020670956,-690.73487709,8.763e-05,2]
[394854108,1764020670990,-690.73487709,8.763e-05,2]
[394854109,1764020671024,-689.00803991,8.763e-05,2]
[394854110,1764020671058,-689.00803991,8.763e-05,2]
[394854111,1764020674010,-689.00803991,8.763e-05,2]
[394854112,1764020674053,-689.00803991,8.763e-05,2]
[394854113,1764020674096,-689.00803991,8.763e-05,2]
[394854114,1764020674140,-689.00803991,8.763e-05,2]
[394854115,1764020674184,-689.00803991,8.763e-05,2]
[394854116,1764020674227,-689.00803991,8.763e-05,2]
[394854117,1764020674273,-689.00803991,8.763e-05,2]
[394854118,1764020677024,-689.00803991,8.763e-05,2]
[394854119,1764020677057,-689.00803991,8.763e-05,2]
[394854120,1764020677089,-689.00803991,8.763e-05,2]
[394854121,1764020677121,-689.00803991,8.763e-05,2]
[394854122,1764020677152,-689.00803991,8.763e-05,2]
[394854123,1764020677183,-689.00803991,8.763e-05,2]
[394854124,1764020677215,-689.00803991,8.763e-05,2]
[394854125,1764020677497,-689.00803991,8.763e-05,2]
[394854126,1764020677532,-689.00803991,8.763e-05,2]
[394854127,1764020677567,-689.00803991,8.763e-05,2]
[394854128,1764020677601,-154.80314386,8.765e-05,2]
[394854129,1764020677629,-500.0,8.765e-05,2]
[394854130,1764020677657,-222.89124524,8.766e-05,2]
[394854131,1764020679493,500.0,8.765e-05,2]
[394854132,1764020681321,500.0,8.765e-05,2]
[394854135,1764020688475,222.32907209,8.765e-05,2]
[394854136,1764020689750,500.0,8.765e-05,2]
[394854137,1764020691502,151.0,8.767e-05,2]
[394854138,1764020699702,2237.24391025,8.679e-05,2]
[394854139,1764020699724,7485.46977926,8.679e-05,2]
[394854140,1764020712206,500.0,8.766e-05,2]
[394854143,1764020713470,500.0,8.766e-05,2]
[394854144,1764020715178,500.0,8.766e-05,2]
[394854145,1764020715530,500.0,8.766e-05,2]
[394854146,1764020715847,500.0,8.766e-05,2]